{"text_format":"2","workbook":"xlsx","n_sheets":23,"sheets":["Cover","INDICE","01_Scheda_anagrafica","02.01_Ricognizione_Dirette","02.02_Ricognizione_Indirette","02.03_Grafico_Relazioni ","03.01.01 Funivia Boario Borno ","03.01.02 V.C.S. Srl","03.01.03 SIV Srl","03.01.04 Blu Reti Gas","03.01.05 VCS Vendite Spa","03.02.01 Funivia Boario Borno","03.02.02 V.C.S. Srl","03.02.03 SIV Srl","03.02.04 Blu Reti Gas srl","03.02.05 VCS Vendite srl","04_Mantenimento","05.01_Azioni_Contenimento_Costi","05.02_Azioni_Cessione","05.03_Azioni_Liquidazione","05.04_Azioni_Fusione","05.05_Riepilogo","06._Elenco_motivazioni"],"not_rendered":{"charts":0,"images":0,"macros":0,"external_links":0,"defined_names":28,"comments":0,"pivot_tables":0},"unopened":[],"bounds":{"document_bytes":16777216,"sheet_cells":100000,"run_cost":"one","rows_first":2000,"rows_last":500,"rows_between":2000,"halvings":0,"cell_chars":16384,"cell_head_chars":4096},"cells_cut":0,"cells_raw":0,"read":"whole","date_system":"1900"}

{"sheet":"Cover","index":0,"n_rows":11,"n_cols":3,"rows_kept":11,"cut":false,"hidden":false,"merged":[[18,2,18,6],[10,2,10,6],[16,2,16,6],[17,2,17,6],[7,2,7,6]]}
{"$rows_empty":7}
[null,null,"COMUNE DI PIANCOGNO"]
[]
[]
[null,null,"PIANO DI RAZIONALIZZAZIONE PERIODICA DELLE PARTECIPAZIONI SOCIETARIE                                                      ANNO 2025                                                                                                     (ART. 20 D.LGS. N. 175/2016)"]

{"sheet":"INDICE","index":1,"n_rows":21,"n_cols":4,"rows_kept":21,"cut":false,"hidden":false,"merged":[]}
[]
[]
[]
[null,null,null,"INDICE"]
[]
[null,"01.",null,"SCHEDA ANAGRAFICA"]
[null,"02.",null,"RICOGNIZIONE DELLE SOCIETÀ PARTECIPATE"]
[null,null,"02.01.","Ricognizione delle società a partecipazione diretta"]
[null,null,"02.02.","Ricognizione delle società a partecipazione indiretta"]
[null,null,"02.03.","Grafico delle relazioni tra partecipazioni"]
[null,"03.",null,"REQUISITI TESTO UNICO DELLE SOCIETÀ A PARTECIPAZIONE PUBBLICA (T.U.S.P.)"]
[null,null,"03.01.","Finalità perseguite e attività ammesse (articoli 4 e 26)"]
[null,null,"03.02.","Condizioni art. 20 co. 2"]
[null,"04.",null,"MANTENIMENTO SENZA INTERVENTI DI RAZIONALIZZAZIONE"]
[null,"05.",null,"AZIONI DI RAZIONALIZZAZIONE"]
[null,null,"05.01.","Contenimento costi"]
[null,null,"05.02.","Cessione/Alienazione quote"]
[null,null,"05.03.","Liquidazione"]
[null,null,"05.04.","Fusione/Incorporazione"]
[null,null,"05.05.","Riepilogo"]
[null,"06.",null,"ELENCO MOTIVAZIONI"]

{"sheet":"01_Scheda_anagrafica","index":2,"n_rows":71,"n_cols":11,"rows_kept":71,"cut":false,"hidden":false,"merged":[[24,2,24,6],[26,2,26,3],[26,5,26,6],[28,2,28,6],[29,1,29,6],[1,2,3,6],[6,2,6,6],[17,5,17,6],[20,2,20,3],[20,5,20,6],[5,1,5,2],[13,2,13,5]]}
[]
[null,null,"PIANO DI RAZIONALIZZAZIONE PERIODICA DELLE PARTECIPAZIONI  SOCIETARIE ANNO 2025                                                                                          (ART. 20 D.LGS. N. 175/2016)"]
[]
[]
[]
[null,"01. SCHEDA ANAGRAFICA"]
[]
[null,null,"Tipologia Ente:",null,"COMUNE"]
[]
[null,null,"Denominazione Ente:",null,"COMUNE DI PIANCOGNO",{"$nulls":4},"Impostare elenco enti"]
[]
[null,null,"Codice fiscale dell'Ente:","00948230172",{"$nulls":5},"Impostare elenco codici fiscali"]
[]
[null,null,"    L'ente ha già adottato il piano operativo straord. di razionalizzazione ai sensi dell'art. 24 TUSP 175/2016",null,null,null,"SI"]
[]
[]
[]
[null,null,"Dati del referente/responsabile per la compilazione del piano",null,null,"SEGRETARIO "]
[]
[null,null,"Nome:",null,null,"Cognome:"]
[null,null,"MATTEO",null,null,"TONSI"]
[]
[null,null,"Recapiti:"]
[null,null,"Indirizzo:"]
[null,null,"Via Nazionale 49 - 25052 Piancogno"]
[null,null,"Telefono:",null,null,"fax"]
[null,null,"0364-364841",null,null,"0364-364899"]
[null,null,"Posta elettronica:"]
[null,null,"uff.segreteria@comune.piancogno.bs.it"]
{"$rows_empty":8}
[{"$nulls":9},"Regione","Codice fiscale"]
[]
[{"$nulls":9},"Ente","Codice fiscale"]
[{"$nulls":9},"ABRUZZO",80003170661]
[{"$nulls":9},"BASILICATA",80002950766]
[{"$nulls":9},"CALABRIA","02205340793"]
[{"$nulls":9},"CAMPANIA"]
[{"$nulls":9},"EMILIA-ROMAGNA"]
[{"$nulls":9},"FRIULI-VENEZIA GIULIA",80014930327]
[{"$nulls":9},"LAZIO",80143490581]
[{"$nulls":9},"LIGURIA","00849050109"]
[{"$nulls":9},"LOMBARDIA",80050050154]
[{"$nulls":9},"MARCHE",80008630420]
[{"$nulls":9},"MOLISE","00169440708"]
[{"$nulls":9},"PIEMONTE",80087670016]
[{"$nulls":9},"PROVINCIA AUTONOMA DI BOLZANO","00390090215"]
[{"$nulls":9},"PROVINCIA AUTONOMA DI TRENTO","00337460224"]
[{"$nulls":9},"PUGLIA",80017210727]
[{"$nulls":9},"SARDEGNA",80002870923]
[{"$nulls":9},"SICILIA",80012000826]
[{"$nulls":9},"TOSCANA","01386030488"]
[{"$nulls":9},"TRENTINO ALTO-ADIGE",80003690221]
[{"$nulls":9},"UMBRIA",80000130544]
[{"$nulls":9},"VALLE D'AOSTA"]
[{"$nulls":9},"VENETO",80007580279]
[]
[]
[]
[]
[]
[]
[{"$nulls":10},"Regione/Provincia autonoma"]
[{"$nulls":10},"Provincia/Città metropolitana"]
[{"$nulls":10},"Comune"]

{"sheet":"02.01_Ricognizione_Dirette","index":3,"n_rows":225,"n_cols":13,"rows_kept":225,"cut":false,"hidden":false,"merged":[]}
[null,"02. RICOGNIZIONE DELLE SOCIETÀ PARTECIPATE"]
[]
[null,"02.01. Ricognizione delle società a partecipazione diretta"]
[null,"Progressivo","Codice fiscale società","Denominazione società","Anno di costituzione","% Quota di partecipazione","Attività svolta","Partecipazione di controllo","Società in house","Quotata (ai sensi del d.lgs. n. 175/2016)","Holding pura"]
[null,"A","B","C","D","E","F","G","H","I","J"]
[null,1,"00646260174","Funivia Boario Terme - Borno S.p.a.",1967,0.02,"Gestione di qualsiasi tipo di impianto di risalita e di trasporto a fune","NO","NO","NO","NO"]
[null,2,"02245000985","Valle Camonica Servizi S.r.l.",2001,0.49969999999999998,"all’attività degli enti locali soci, di servizi di interesse generale, di servizi di interesse economico","NO","SI","NO","NO"]
[null,3,"03432640989","Servizi Idrici Valle camonica S.r.l.",2012,2.0489999999999999,"esternalizzate di competenza degli enti locali soci.","NO","SI","NO","NO"]
[null,"Le società a partecipazione diretta (quotate e non quotate) sono sempre oggetto di ricognizione, anche se non controllate dall'ente."]
[null,"Colonna B: Inserire codice di 11 cifre per le società aventi sede in Italia; codice di 11 cifre seguito da \"E\" per le società aventi sede all'estero."]
[null,"Colonna C: Inserire la ragione sociale comprensiva della forma giuridica."]
[null,"Colonna E: Inserire valori comprensivi di decimali."]
[null,"Colonna F: Inserire una descrizione sintetica della/e attività effettivamente svolta/e."]
[null,"Colonna G: Indicare se la partecipazione detenuta dall'amministrazione è di controllo ai sensi dell'art. 2359 c.c."]
[null,"Colonna H: Indicare \"SI\" se l'Amministrazione esercita il controllo analogo o più Amministrazioni esercitano il controllo analogo congiunto."]
[null,"Colonna I: Indicare \"SI\" se la società emette azioni quotate in mercati regolamentati; se ha emesso, al 31/12/2015, strumenti finanziari quotati in mercati regolamentati; "]
[null,"                se sia partecipata da società quotate o che hanno emesso strumenti finanziari quotati."]
[null,"Colonna J: Indicare \"SI\" se la società ha come oggetto sociale esclusivo la gestione delle partecipazioni societarie per conto dell'Amministrazione."]
{"$rows_empty":37}
[{"$nulls":11},"SI",2017]
[{"$nulls":11},"NO",{"$f":"+M56-1","v":2016}]
[{"$nulls":12},{"$f":"+M57-1","v":2015}]
[{"$nulls":12},2014]
[{"$nulls":12},2013]
[{"$nulls":12},2012]
[{"$nulls":12},2011]
[{"$nulls":12},2010]
[{"$nulls":12},2009]
[{"$nulls":12},2008]
[{"$nulls":12},2007]
[{"$nulls":12},2006]
[{"$nulls":12},2005]
[{"$nulls":12},2004]
[{"$nulls":12},2003]
[{"$nulls":12},2002]
[{"$nulls":12},2001]
[{"$nulls":12},2000]
[{"$nulls":12},1999]
[{"$nulls":12},1998]
[{"$nulls":12},1997]
[{"$nulls":12},1996]
[{"$nulls":12},1995]
[{"$nulls":12},1994]
[{"$nulls":12},1993]
[{"$nulls":12},1992]
[{"$nulls":12},1991]
[{"$nulls":12},1990]
[{"$nulls":12},1989]
[{"$nulls":12},1988]
[{"$nulls":12},1987]
[{"$nulls":12},1986]
[{"$nulls":12},1985]
[{"$nulls":12},1984]
[{"$nulls":12},1983]
[{"$nulls":12},1982]
[{"$nulls":12},1981]
[{"$nulls":12},1980]
[{"$nulls":12},1979]
[{"$nulls":12},1978]
[{"$nulls":12},1977]
[{"$nulls":12},1976]
[{"$nulls":12},1975]
[{"$nulls":12},1974]
[{"$nulls":12},1973]
[{"$nulls":12},1972]
[{"$nulls":12},1971]
[{"$nulls":12},1970]
[{"$nulls":12},1969]
[{"$nulls":12},1968]
[{"$nulls":12},1967]
[{"$nulls":12},1966]
[{"$nulls":12},1965]
[{"$nulls":12},1964]
[{"$nulls":12},1963]
[{"$nulls":12},1962]
[{"$nulls":12},1961]
[{"$nulls":12},1960]
[{"$nulls":12},1959]
[{"$nulls":12},1958]
[{"$nulls":12},1957]
[{"$nulls":12},1956]
[{"$nulls":12},1955]
[{"$nulls":12},1954]
[{"$nulls":12},1953]
[{"$nulls":12},1952]
[{"$nulls":12},{"$f":"+M121-1","v":1951}]
[{"$nulls":12},1950]
[{"$nulls":12},1949]
[{"$nulls":12},1948]
[{"$nulls":12},1947]
[{"$nulls":12},1946]
[{"$nulls":12},1945]
[{"$nulls":12},1944]
[{"$nulls":12},1943]
[{"$nulls":12},1942]
[{"$nulls":12},1941]
[{"$nulls":12},1940]
[{"$nulls":12},1939]
[{"$nulls":12},1938]
[{"$nulls":12},1937]
[{"$nulls":12},1936]
[{"$nulls":12},1935]
[{"$nulls":12},1934]
[{"$nulls":12},1933]
[{"$nulls":12},1932]
[{"$nulls":12},1931]
[{"$nulls":12},1930]
[{"$nulls":12},1929]
[{"$nulls":12},1928]
[{"$nulls":12},1927]
[{"$nulls":12},1926]
[{"$nulls":12},1925]
[{"$nulls":12},1924]
[{"$nulls":12},1923]
[{"$nulls":12},1922]
[{"$nulls":12},1921]
[{"$nulls":12},1920]
[{"$nulls":12},1919]
[{"$nulls":12},1918]
[{"$nulls":12},1917]
[{"$nulls":12},1916]
[{"$nulls":12},1915]
[{"$nulls":12},1914]
[{"$nulls":12},1913]
[{"$nulls":12},1912]
[{"$nulls":12},1911]
[{"$nulls":12},1910]
[{"$nulls":12},1909]
[{"$nulls":12},1908]
[{"$nulls":12},1907]
[{"$nulls":12},1906]
[{"$nulls":12},1905]
[{"$nulls":12},1904]
[{"$nulls":12},1903]
[{"$nulls":12},1902]
[{"$nulls":12},1901]
[{"$nulls":12},1900]
[{"$nulls":12},1899]
[{"$nulls":12},1898]
[{"$nulls":12},1897]
[{"$nulls":12},1896]
[{"$nulls":12},1895]
[{"$nulls":12},1894]
[{"$nulls":12},1893]
[{"$nulls":12},1892]
[{"$nulls":12},1891]
[{"$nulls":12},1890]
[{"$nulls":12},1889]
[{"$nulls":12},1888]
[{"$nulls":12},{"$f":"+M185-1","v":1887}]
[{"$nulls":12},1886]
[{"$nulls":12},1885]
[{"$nulls":12},1884]
[{"$nulls":12},1883]
[{"$nulls":12},1882]
[{"$nulls":12},1881]
[{"$nulls":12},1880]
[{"$nulls":12},1879]
[{"$nulls":12},1878]
[{"$nulls":12},1877]
[{"$nulls":12},1876]
[{"$nulls":12},1875]
[{"$nulls":12},1874]
[{"$nulls":12},1873]
[{"$nulls":12},1872]
[{"$nulls":12},1871]
[{"$nulls":12},1870]
[{"$nulls":12},1869]
[{"$nulls":12},1868]
[{"$nulls":12},1867]
[{"$nulls":12},1866]
[{"$nulls":12},1865]
[{"$nulls":12},1864]
[{"$nulls":12},1863]
[{"$nulls":12},1862]
[{"$nulls":12},1861]
[{"$nulls":12},1860]
[{"$nulls":12},1859]
[{"$nulls":12},1858]
[{"$nulls":12},1857]
[{"$nulls":12},1856]
[{"$nulls":12},1855]
[{"$nulls":12},1854]
[{"$nulls":12},1853]
[{"$nulls":12},1852]
[{"$nulls":12},1851]
[{"$nulls":12},1850]
[{"$nulls":12},1849]
[{"$nulls":12},1848]

{"sheet":"02.02_Ricognizione_Indirette","index":4,"n_rows":243,"n_cols":13,"rows_kept":243,"cut":false,"hidden":false,"merged":[[14,1,14,12]]}
[null,"02. RICOGNIZIONE DELLE SOCIETÀ PARTECIPATE"]
[null,"02.02. Ricognizione delle società a partecipazione indiretta"]
[]
[null,"Progressivo","Codice fiscale società","Denominazione società","Anno di costituzione","Denominazione società/organismo tramite","% Quota di partecipazione società/organismo tramite","% Quota di partecipazione indiretta Amministrazione","Attività svolta","Partecipazione di controllo","Società in house","Quotata (ai sensi del d.lgs. n. 175/2016)","Holding pura"]
[null,"A","B","C","D","E","F","G","H","I","J","K","L"]
[null,1,"03737190987","Blu Reti Gas S.r.l.",2015,"Valle Camonica Servizi S.r.l. e Consorzio Servizi Valle Camonica",0.49969999999999998,1.7206999999999999,"Distribuzione combustibili gassosi; installazione e manutenzione impianti idraulici, di riscaldamento , di condizionamento dell'aria e per la distribuzione del gas; altre attività di consulenza tecnica","NO","NO"]
[null,2,"02349420980","Valle Camonica Servizi Vendite S.p.a.",2002,"Valle Camonica Servizi S.r.l. e Consorzio Servizi Valle Camonica",0.49969999999999998,1.7206999999999999,"Commercio di gas distribuito mediante condotte; commercio di energia elettrica ","NO","NO"]
[null,3,"00646260174","Funivia Boario Terme Borno Spa",1967,"Consorzio Servizi Valle Camonica",1.39,2.9190000000000002E-3,"Gestione di impianto di risalita e servizio di ristorazione bar","NO","NO"]
[null,4,"02245000985","Valle Camonica Servizi S.r.l.",2001,"Consorzio Servizi Valle Camonica",1.39,1.2210000000000001,"Raccolta, trattamento e smaltimento rifiuti; trasporto merci su strada; produzione energia elettrica; installazione, manutenzione e riparazione impianti elettrici. ","NO","SI"]
[]
[]
[]
[]
[]
[null,"Le società a partecipazione indiretta (quotate e non quotate) sono oggetto di ricognizione solo se detenute dall’ente per il tramite di una società/organismo sottoposto a controllo da parte dello stesso."]
[null,"Colonna B: Inserire codice di 11 cifre per le società aventi sede in Italia; codice di 11 cifre seguito da \"E\" per le società aventi sede all'estero."]
[null,"Colonna C: Inserire la ragione sociale comprensiva della forma giuridica."]
[null,"Colonna E: Inserire la denominazione delle società/organismi (1 o +) attraverso le quali l'ente partecipa alle medesime. Per le indirette di livello successivo, inserire la denominazione delle società/organismi"]
[null,"                 partecipanti (1 o +) del livello immediatamente precedente."]
[null,"Colonna F: indicare separatamente ciascuna quota di partecipazione (comprensiva di decimali) qualora la partecipazione sia detenuta attraverso 2 o + società/organismi tramite. "]
[null,"Colonna G: indicare una unica quota di partecipazione (comprensiva di decimali) determinata in proporzione alla quote di partecipazione dei livelli precedenti. "]
[null,"Colonna H: Inserire una descrizione sintetica della/e attività effettivamente svolta/e."]
[null,"Colonna I: Indicare se la partecipazione detenuta dall'amministrazione è di controllo ai sensi dell'art. 2359 c.c."]
[null,"Colonna J: Indicare \"SI\" se l'Amministrazione esercita il controllo analogo o più Amministrazioni esercitano il controllo analogo congiunto."]
[null,"Colonna K: Indicare \"SI\" se la società emette azioni quotate in mercati regolamentati; se ha emesso, al 31/12/2015, strumenti finanziari quotati in mercati regolamentati; "]
[null,"                se sia partecipata da società quotate o che hanno emesso strumenti finanziari quotati."]
[null,"Colonna L: Indicare \"SI\" se la società ha come oggetto sociale esclusivo la gestione delle partecipazioni societarie per conto dell'Amministrazione."]
{"$rows_empty":46}
[{"$nulls":11},"SI",2017]
[{"$nulls":11},"NO",{"$f":"+M74-1","v":2016}]
[{"$nulls":12},{"$f":"+M75-1","v":2015}]
[{"$nulls":12},2014]
[{"$nulls":12},2013]
[{"$nulls":12},2012]
[{"$nulls":12},2011]
[{"$nulls":12},2010]
[{"$nulls":12},2009]
[{"$nulls":12},2008]
[{"$nulls":12},2007]
[{"$nulls":12},2006]
[{"$nulls":12},2005]
[{"$nulls":12},2004]
[{"$nulls":12},2003]
[{"$nulls":12},2002]
[{"$nulls":12},2001]
[{"$nulls":12},2000]
[{"$nulls":12},1999]
[{"$nulls":12},1998]
[{"$nulls":12},1997]
[{"$nulls":12},1996]
[{"$nulls":12},1995]
[{"$nulls":12},1994]
[{"$nulls":12},1993]
[{"$nulls":12},1992]
[{"$nulls":12},1991]
[{"$nulls":12},1990]
[{"$nulls":12},1989]
[{"$nulls":12},1988]
[{"$nulls":12},1987]
[{"$nulls":12},1986]
[{"$nulls":12},1985]
[{"$nulls":12},1984]
[{"$nulls":12},1983]
[{"$nulls":12},1982]
[{"$nulls":12},1981]
[{"$nulls":12},1980]
[{"$nulls":12},1979]
[{"$nulls":12},1978]
[{"$nulls":12},1977]
[{"$nulls":12},1976]
[{"$nulls":12},1975]
[{"$nulls":12},1974]
[{"$nulls":12},1973]
[{"$nulls":12},1972]
[{"$nulls":12},1971]
[{"$nulls":12},1970]
[{"$nulls":12},1969]
[{"$nulls":12},1968]
[{"$nulls":12},1967]
[{"$nulls":12},1966]
[{"$nulls":12},1965]
[{"$nulls":12},1964]
[{"$nulls":12},1963]
[{"$nulls":12},1962]
[{"$nulls":12},1961]
[{"$nulls":12},1960]
[{"$nulls":12},1959]
[{"$nulls":12},1958]
[{"$nulls":12},1957]
[{"$nulls":12},1956]
[{"$nulls":12},1955]
[{"$nulls":12},1954]
[{"$nulls":12},1953]
[{"$nulls":12},1952]
[{"$nulls":12},{"$f":"+M139-1","v":1951}]
[{"$nulls":12},1950]
[{"$nulls":12},1949]
[{"$nulls":12},1948]
[{"$nulls":12},1947]
[{"$nulls":12},1946]
[{"$nulls":12},1945]
[{"$nulls":12},1944]
[{"$nulls":12},1943]
[{"$nulls":12},1942]
[{"$nulls":12},1941]
[{"$nulls":12},1940]
[{"$nulls":12},1939]
[{"$nulls":12},1938]
[{"$nulls":12},1937]
[{"$nulls":12},1936]
[{"$nulls":12},1935]
[{"$nulls":12},1934]
[{"$nulls":12},1933]
[{"$nulls":12},1932]
[{"$nulls":12},1931]
[{"$nulls":12},1930]
[{"$nulls":12},1929]
[{"$nulls":12},1928]
[{"$nulls":12},1927]
[{"$nulls":12},1926]
[{"$nulls":12},1925]
[{"$nulls":12},1924]
[{"$nulls":12},1923]
[{"$nulls":12},1922]
[{"$nulls":12},1921]
[{"$nulls":12},1920]
[{"$nulls":12},1919]
[{"$nulls":12},1918]
[{"$nulls":12},1917]
[{"$nulls":12},1916]
[{"$nulls":12},1915]
[{"$nulls":12},1914]
[{"$nulls":12},1913]
[{"$nulls":12},1912]
[{"$nulls":12},1911]
[{"$nulls":12},1910]
[{"$nulls":12},1909]
[{"$nulls":12},1908]
[{"$nulls":12},1907]
[{"$nulls":12},1906]
[{"$nulls":12},1905]
[{"$nulls":12},1904]
[{"$nulls":12},1903]
[{"$nulls":12},1902]
[{"$nulls":12},1901]
[{"$nulls":12},1900]
[{"$nulls":12},1899]
[{"$nulls":12},1898]
[{"$nulls":12},1897]
[{"$nulls":12},1896]
[{"$nulls":12},1895]
[{"$nulls":12},1894]
[{"$nulls":12},1893]
[{"$nulls":12},1892]
[{"$nulls":12},1891]
[{"$nulls":12},1890]
[{"$nulls":12},1889]
[{"$nulls":12},1888]
[{"$nulls":12},{"$f":"+M203-1","v":1887}]
[{"$nulls":12},1886]
[{"$nulls":12},1885]
[{"$nulls":12},1884]
[{"$nulls":12},1883]
[{"$nulls":12},1882]
[{"$nulls":12},1881]
[{"$nulls":12},1880]
[{"$nulls":12},1879]
[{"$nulls":12},1878]
[{"$nulls":12},1877]
[{"$nulls":12},1876]
[{"$nulls":12},1875]
[{"$nulls":12},1874]
[{"$nulls":12},1873]
[{"$nulls":12},1872]
[{"$nulls":12},1871]
[{"$nulls":12},1870]
[{"$nulls":12},1869]
[{"$nulls":12},1868]
[{"$nulls":12},1867]
[{"$nulls":12},1866]
[{"$nulls":12},1865]
[{"$nulls":12},1864]
[{"$nulls":12},1863]
[{"$nulls":12},1862]
[{"$nulls":12},1861]
[{"$nulls":12},1860]
[{"$nulls":12},1859]
[{"$nulls":12},1858]
[{"$nulls":12},1857]
[{"$nulls":12},1856]
[{"$nulls":12},1855]
[{"$nulls":12},1854]
[{"$nulls":12},1853]
[{"$nulls":12},1852]
[{"$nulls":12},1851]
[{"$nulls":12},1850]
[{"$nulls":12},1849]
[{"$nulls":12},1848]

{"sheet":"02.03_Grafico_Relazioni ","index":5,"n_rows":15,"n_cols":19,"rows_kept":15,"cut":false,"hidden":false,"merged":[[2,9,4,31],[9,0,10,1],[9,3,10,4],[9,6,10,7],[9,9,10,10],[9,12,10,13],[9,15,10,16],[9,18,10,19],[9,21,10,22],[9,24,10,25],[9,36,10,37],[9,39,10,40],[14,8,15,10],[14,14,15,17],[14,19,14,20],[18,8,19,10],[18,16,18,17],[9,27,10,28],[9,30,10,31],[9,33,10,34]]}
["02. RICOGNIZIONE DELLE SOCIETÀ PARTECIPATE"]
["02.03. Grafico delle relazioni tra partecipazioni"]
[{"$nulls":9},"COMUNE DI PIANCOGNO"]
[]
[]
[]
[]
[]
[]
[{"$nulls":12},"Valle Camonica Servizi S.r.l. (0,4997%) quota di partecipazione diretta         (1,221%) quota di partecipazione indiretta)",null,null,"Servizi Idrici Valle Camonica srl   (2,05%) quota di partecipazione diretta",null,null,"Funivia Boario Terme - Borno spa (0,02) quota di partecipazione diretta                    (0,002919%) quoata di partecipazione indiretta"]
[]
[]
[]
[]
[{"$nulls":8},"Valle Camonica Servizi Vendite S.p.a. (controllata al 100 %) (1,7207%) quota di partecipazione",{"$nulls":5},"Blu Reti Gas S.r.l. (controllata al 100%) (1,7207%) quota di partecipazione"]

{"sheet":"03.01.01 Funivia Boario Borno ","index":6,"n_rows":58,"n_cols":7,"rows_kept":58,"cut":false,"hidden":false,"merged":[[32,1,32,4],[6,4,6,5],[10,4,10,5],[13,1,13,4],[15,1,15,4],[17,1,17,4],[19,1,19,4],[21,1,21,4],[24,1,24,4],[26,1,26,4],[28,1,28,4],[30,1,30,4],[46,1,46,4],[48,1,48,4],[50,1,50,4],[51,1,51,4],[34,1,34,4],[36,1,36,4],[38,1,38,4],[40,1,40,4],[42,1,42,4],[44,1,44,4]]}
[]
[null,"03. REQUISITI TESTO UNICO DELLE SOCIETÀ A PARTECIPAZIONE PUBBLICA"]
[null,"03.01. Finalità perseguite e attività ammesse (articoli 4 e 26)"]
[]
[null,null,null,"Progressivo società partecipata:",1,null,"(a)"]
[]
[null,null,null,"Denominazione società partecipata:","Funivia Boario Terme - Borno S.p.a.",null,"(b)"]
[]
[null,null,null,"Tipo partecipazione:","sia diretta che indiretta",null,"(c)"]
[]
[null,null,null,"Attività svolta:","Gestione di qualsiasi tipo di impianto di risalita e di trasporto a fune",null,"(d)"]
[]
[null,"indicare se la società:"]
["-","Rientra nell'Allegato \"A\" del d.lgs. n. 175/2016 (art. 26, co. 2)"]
[]
["-","Ha come oggetto esclusivo la gestione di fondi europei per conto dello Stato o delle Regioni, ovvero la realizzazione di progetti di ricerca finanziati dalle istituzioni dell'Unione Europea (art. 26, co. 2)"]
[]
["-","È stata esclusa, con deliberazione adottata ai sensi dell'art. 4 co. 9, secondo periodo, dall'applicazione totale o parziale delle disposizioni del medesimo articolo (solo per le società partecipate dalle Regioni/Prov. Aut.)"]
[]
["-","È destinataria dei provvedimenti di cui al d.lgs. n. 159/2011 (art. 26, co. 12-bis) "]
[]
["-","È autorizzata alla gestione delle case da gioco, ai sensi della legislazione vigente (art. 26, co. 12-sexies) "]
[]
[null,"Qualora non sia stata selezionata alcuna delle opzioni indicate ai punti precedenti, indicare se la società:"]
["-","È costituita in attuazione dell'art. 34 del regolamento CE n. 13/2013 - Gruppi d'Azione Locale (art. 4, co. 6)"]
[]
["-","Ha per oggetto sociale prevalente la gestione di spazi fieristici e l'organizzazione di eventi fieristici (art. 4, co. 7)"]
[]
["-","Ha per oggetto sociale prevalente la realizzazione e la gestione di impianti di trasporto a fune per la mobilità turistico-sportiva in aree montane (art. 4, co. 7)"]
[]
["-","Ha per oggetto sociale prevalente la produzione di energia da fonti rinnovabili (art. 4, co. 7)"]
[]
["-","Ha caratteristiche di spin off o di start up universitario, o analoghe a quelle degli enti di ricerca, ovvero gestisce aziende agricole con funzioni didattiche (art. 4, co. 8)"]
[]
["-","Produce un servizio di interesse generale a rete (di cui all'art. 3-bis del d.l. 138/2011) fuori dall'ambito territoriale di riferimento, con affidamento dei servizi, in corso e nuovi, tramite procedure ad evidenza pubblica (art. 4, co. 9-bis)"]
[]
["-","Produce beni e servizi strettamente necessari per il perseguimento delle finalità istituzionali dell'ente (art. 4, co. 1)"]
[]
["-","Produce un servizio di interesse generale (art. 4, co. 2, lett. a)"]
[]
["-","Progetta e realizza un'opera pubblica sulla base di un accordo di programma fra amministrazioni pubbliche (art. 4, co. 2, lett. b)"]
[]
["-","Realizza e gestisce un'opera pubblica ovvero organizza e gestisce un servizio di interesse generale attraverso un contratto di partenariato pubblico/privato (art. 4, co. 2, lett. c)"]
[]
["-","Produce beni o servizi strumentali all'ente o agli enti pubblici partecipanti o alla svolgimento delle loro funzioni(art. 4, co. 2, lett. d)"]
[]
["-","Svolge servizi di committenza (art. 4, co. 2, lett. e)"]
[]
["-","Valorizza il patrimonio immobiliare dell'amministrazione partecipante (art. 4, co. 3)"]
[]
[null,"Indicare le motivazioni della riconducibilità o meno ai vincoli di scopo di cui al co. 1 o ad una delle attività di cui ai commi 2 e 3, anche con riferimento alle società che svolgono le attività di cui ai commi 6, 7, 8:"]
[null,"Trattasi di società di gestione di impianti di risalita nel comprensorio sciistico di Borno"]
[]
[null,"(a): Inserire uno dei progressivi già indicati nelle schede di ricognizione (02.01; 02.02)."]
[null,"(b): Inserire la ragione sociale come indicata nelle schede di ricognizione (02.01; 02.02)."]
[null,"(c): Indicare il tipo di partecipazione distinguendo i casi in cui la società sia partecipata direttamente, indirettamente (tramite altra società/organismo),"]
[null,"       ovvero in parte direttamente e in parte indirettamente."]
[null,"(d): Inserire l'attività come indicata nelle schede di ricognizione (02.01; 02.02)."]

{"sheet":"03.01.02 V.C.S. Srl","index":7,"n_rows":58,"n_cols":7,"rows_kept":58,"cut":false,"hidden":false,"merged":[[46,1,46,4],[48,1,48,4],[50,1,50,4],[51,1,51,4],[34,1,34,4],[36,1,36,4],[38,1,38,4],[40,1,40,4],[42,1,42,4],[44,1,44,4],[32,1,32,4],[6,4,6,5],[10,4,10,5],[13,1,13,4],[15,1,15,4],[17,1,17,4],[19,1,19,4],[21,1,21,4],[24,1,24,4],[26,1,26,4],[28,1,28,4],[30,1,30,4]]}
[]
[null,"03. REQUISITI TESTO UNICO DELLE SOCIETÀ A PARTECIPAZIONE PUBBLICA"]
[null,"03.01. Finalità perseguite e attività ammesse (articoli 4 e 26)"]
[]
[null,null,null,"Progressivo società partecipata:",2,null,"(a)"]
[]
[null,null,null,"Denominazione società partecipata:","Valle Camonica Servizi S.r.l.",null,"(b)"]
[]
[null,null,null,"Tipo partecipazione:","sia diretta che indiretta",null,"(c)"]
[]
[null,null,null,"Attività svolta:","Raccolta, trattamento e smaltimento rifiuti; trasporto merci su strada; produzione energia elettrica; installazione, manutenzione e riparazione impianti elettrici, elettronici e di illuminazione",null,"(d)"]
[]
[null,"indicare se la società:"]
["-","Rientra nell'Allegato \"A\" del d.lgs. n. 175/2016 (art. 26, co. 2)"]
[]
["-","Ha come oggetto esclusivo la gestione di fondi europei per conto dello Stato o delle Regioni, ovvero la realizzazione di progetti di ricerca finanziati dalle istituzioni dell'Unione Europea (art. 26, co. 2)"]
[]
["-","È stata esclusa, con deliberazione adottata ai sensi dell'art. 4 co. 9, secondo periodo, dall'applicazione totale o parziale delle disposizioni del medesimo articolo (solo per le società partecipate dalle Regioni/Prov. Aut.)"]
[]
["-","È destinataria dei provvedimenti di cui al d.lgs. n. 159/2011 (art. 26, co. 12-bis) "]
[]
["-","È autorizzata alla gestione delle case da gioco, ai sensi della legislazione vigente (art. 26, co. 12-sexies) "]
[]
[null,"Qualora non sia stata selezionata alcuna delle opzioni indicate ai punti precedenti, indicare se la società:"]
["-","È costituita in attuazione dell'art. 34 del regolamento CE n. 13/2013 - Gruppi d'Azione Locale (art. 4, co. 6)"]
[]
["-","Ha per oggetto sociale prevalente la gestione di spazi fieristici e l'organizzazione di eventi fieristici (art. 4, co. 7)"]
[]
["-","Ha per oggetto sociale prevalente la realizzazione e la gestione di impianti di trasporto a fune per la mobilità turistico-sportiva in aree montane (art. 4, co. 7)"]
[]
["-","Ha per oggetto sociale prevalente la produzione di energia da fonti rinnovabili (art. 4, co. 7)"]
[]
["-","Ha caratteristiche di spin off o di start up universitario, o analoghe a quelle degli enti di ricerca, ovvero gestisce aziende agricole con funzioni didattiche (art. 4, co. 8)"]
[]
["-","Produce un servizio di interesse generale a rete (di cui all'art. 3-bis del d.l. 138/2011) fuori dall'ambito territoriale di riferimento, con affidamento dei servizi, in corso e nuovi, tramite procedure ad evidenza pubblica (art. 4, co. 9-bis)"]
[]
["-","Produce beni e servizi strettamente necessari per il perseguimento delle finalità istituzionali dell'ente (art. 4, co. 1)"]
[]
["-","Produce un servizio di interesse generale (art. 4, co. 2, lett. a)"]
[]
["-","Progetta e realizza un'opera pubblica sulla base di un accordo di programma fra amministrazioni pubbliche (art. 4, co. 2, lett. b)"]
[]
["-","Realizza e gestisce un'opera pubblica ovvero organizza e gestisce un servizio di interesse generale attraverso un contratto di partenariato pubblico/privato (art. 4, co. 2, lett. c)"]
[]
["-","Produce beni o servizi strumentali all'ente o agli enti pubblici partecipanti o alla svolgimento delle loro funzioni(art. 4, co. 2, lett. d)"]
[]
["-","Svolge servizi di committenza (art. 4, co. 2, lett. e)"]
[]
["-","Valorizza il patrimonio immobiliare dell'amministrazione partecipante (art. 4, co. 3)"]
[]
[null,"Indicare le motivazioni della riconducibilità o meno ai vincoli di scopo di cui al co. 1 o ad una delle attività di cui ai commi 2 e 3, anche con riferimento alle società che svolgono le attività di cui ai commi 6, 7, 8:"]
[null,"Trattasi di società \"in house\" di gestione di servizi pubblici locali (igiene ambientale) "]
[]
[null,"(a): Inserire uno dei progressivi già indicati nelle schede di ricognizione (02.01; 02.02)."]
[null,"(b): Inserire la ragione sociale come indicata nelle schede di ricognizione (02.01; 02.02)."]
[null,"(c): Indicare il tipo di partecipazione distinguendo i casi in cui la società sia partecipata direttamente, indirettamente (tramite altra società/organismo),"]
[null,"       ovvero in parte direttamente e in parte indirettamente."]
[null,"(d): Inserire l'attività come indicata nelle schede di ricognizione (02.01; 02.02)."]

{"sheet":"03.01.03 SIV Srl","index":8,"n_rows":58,"n_cols":7,"rows_kept":58,"cut":false,"hidden":false,"merged":[[46,1,46,4],[48,1,48,4],[50,1,50,4],[51,1,51,4],[34,1,34,4],[36,1,36,4],[38,1,38,4],[40,1,40,4],[42,1,42,4],[44,1,44,4],[32,1,32,4],[6,4,6,5],[10,4,10,5],[13,1,13,4],[15,1,15,4],[17,1,17,4],[19,1,19,4],[21,1,21,4],[24,1,24,4],[26,1,26,4],[28,1,28,4],[30,1,30,4]]}
[]
[null,"03. REQUISITI TESTO UNICO DELLE SOCIETÀ A PARTECIPAZIONE PUBBLICA"]
[null,"03.01. Finalità perseguite e attività ammesse (articoli 4 e 26)"]
[]
[null,null,null,"Progressivo società partecipata:",3,null,"(a)"]
[]
[null,null,null,"Denominazione società partecipata:","Servizi Idrici Valle Camonica S.r.l. ",null,"(b)"]
[]
[null,null,null,"Tipo partecipazione:","Diretta",null,"(c)"]
[]
[null,null,null,"Attività svolta:","Servizio idrico integrato; gestione tecnica depuratori; gestione tecnica centraline",null,"(d)"]
[]
[null,"indicare se la società:"]
["-","Rientra nell'Allegato \"A\" del d.lgs. n. 175/2016 (art. 26, co. 2)"]
[]
["-","Ha come oggetto esclusivo la gestione di fondi europei per conto dello Stato o delle Regioni, ovvero la realizzazione di progetti di ricerca finanziati dalle istituzioni dell'Unione Europea (art. 26, co. 2)"]
[]
["-","È stata esclusa, con deliberazione adottata ai sensi dell'art. 4 co. 9, secondo periodo, dall'applicazione totale o parziale delle disposizioni del medesimo articolo (solo per le società partecipate dalle Regioni/Prov. Aut.)"]
[]
["-","È destinataria dei provvedimenti di cui al d.lgs. n. 159/2011 (art. 26, co. 12-bis) "]
[]
["-","È autorizzata alla gestione delle case da gioco, ai sensi della legislazione vigente (art. 26, co. 12-sexies) "]
[]
[null,"Qualora non sia stata selezionata alcuna delle opzioni indicate ai punti precedenti, indicare se la società:"]
["-","È costituita in attuazione dell'art. 34 del regolamento CE n. 13/2013 - Gruppi d'Azione Locale (art. 4, co. 6)"]
[]
["-","Ha per oggetto sociale prevalente la gestione di spazi fieristici e l'organizzazione di eventi fieristici (art. 4, co. 7)"]
[]
["-","Ha per oggetto sociale prevalente la realizzazione e la gestione di impianti di trasporto a fune per la mobilità turistico-sportiva in aree montane (art. 4, co. 7)"]
[]
["-","Ha per oggetto sociale prevalente la produzione di energia da fonti rinnovabili (art. 4, co. 7)"]
[]
["-","Ha caratteristiche di spin off o di start up universitario, o analoghe a quelle degli enti di ricerca, ovvero gestisce aziende agricole con funzioni didattiche (art. 4, co. 8)"]
[]
["-","Produce un servizio di interesse generale a rete (di cui all'art. 3-bis del d.l. 138/2011) fuori dall'ambito territoriale di riferimento, con affidamento dei servizi, in corso e nuovi, tramite procedure ad evidenza pubblica (art. 4, co. 9-bis)"]
[]
["-","Produce beni e servizi strettamente necessari per il perseguimento delle finalità istituzionali dell'ente (art. 4, co. 1)"]
[]
["-","Produce un servizio di interesse generale (art. 4, co. 2, lett. a)"]
[]
["-","Progetta e realizza un'opera pubblica sulla base di un accordo di programma fra amministrazioni pubbliche (art. 4, co. 2, lett. b)"]
[]
["-","Realizza e gestisce un'opera pubblica ovvero organizza e gestisce un servizio di interesse generale attraverso un contratto di partenariato pubblico/privato (art. 4, co. 2, lett. c)"]
[]
["-","Produce beni o servizi strumentali all'ente o agli enti pubblici partecipanti o alla svolgimento delle loro funzioni(art. 4, co. 2, lett. d)"]
[]
["-","Svolge servizi di committenza (art. 4, co. 2, lett. e)"]
[]
["-","Valorizza il patrimonio immobiliare dell'amministrazione partecipante (art. 4, co. 3)"]
[]
[null,"Indicare le motivazioni della riconducibilità o meno ai vincoli di scopo di cui al co. 1 o ad una delle attività di cui ai commi 2 e 3, anche con riferimento alle società che svolgono le attività di cui ai commi 6, 7, 8:"]
[null,"trattasi di società \"in house\" di gestione di servizi nell'ambito del servizio idrico integrato"]
[]
[null,"(a): Inserire uno dei progressivi già indicati nelle schede di ricognizione (02.01; 02.02)."]
[null,"(b): Inserire la ragione sociale come indicata nelle schede di ricognizione (02.01; 02.02)."]
[null,"(c): Indicare il tipo di partecipazione distinguendo i casi in cui la società sia partecipata direttamente, indirettamente (tramite altra società/organismo),"]
[null,"       ovvero in parte direttamente e in parte indirettamente."]
[null,"(d): Inserire l'attività come indicata nelle schede di ricognizione (02.01; 02.02)."]

{"sheet":"03.01.04 Blu Reti Gas","index":9,"n_rows":58,"n_cols":7,"rows_kept":58,"cut":false,"hidden":false,"merged":[[32,1,32,4],[6,4,6,5],[10,4,10,5],[13,1,13,4],[15,1,15,4],[17,1,17,4],[19,1,19,4],[21,1,21,4],[24,1,24,4],[26,1,26,4],[28,1,28,4],[30,1,30,4],[46,1,46,4],[48,1,48,4],[50,1,50,4],[51,1,51,4],[34,1,34,4],[36,1,36,4],[38,1,38,4],[40,1,40,4],[42,1,42,4],[44,1,44,4]]}
[]
[null,"03. REQUISITI TESTO UNICO DELLE SOCIETÀ A PARTECIPAZIONE PUBBLICA"]
[null,"03.01. Finalità perseguite e attività ammesse (articoli 4 e 26)"]
[]
[null,null,null,"Progressivo società partecipata:",1,null,"(a)"]
[]
[null,null,null,"Denominazione società partecipata:","Blu Reti Gas",null,"(b)"]
[]
[null,null,null,"Tipo partecipazione:","Indiretta",null,"(c)"]
[]
[null,null,null,"Attività svolta:","Distribuzione combustibili gassosi; installazione e manutenzione impianti idraulici, di riscaldamento , di condizionamento dell'aria e per la distribuzione del gas; altre attività di consulenza tecnica",null,"(d)"]
[]
[null,"indicare se la società:"]
["-","Rientra nell'Allegato \"A\" del d.lgs. n. 175/2016 (art. 26, co. 2)"]
[]
["-","Ha come oggetto esclusivo la gestione di fondi europei per conto dello Stato o delle Regioni, ovvero la realizzazione di progetti di ricerca finanziati dalle istituzioni dell'Unione Europea (art. 26, co. 2)"]
[]
["-","È stata esclusa, con deliberazione adottata ai sensi dell'art. 4 co. 9, secondo periodo, dall'applicazione totale o parziale delle disposizioni del medesimo articolo (solo per le società partecipate dalle Regioni/Prov. Aut.)"]
[]
["-","È destinataria dei provvedimenti di cui al d.lgs. n. 159/2011 (art. 26, co. 12-bis) "]
[]
["-","È autorizzata alla gestione delle case da gioco, ai sensi della legislazione vigente (art. 26, co. 12-sexies) "]
[]
[null,"Qualora non sia stata selezionata alcuna delle opzioni indicate ai punti precedenti, indicare se la società:"]
["-","È costituita in attuazione dell'art. 34 del regolamento CE n. 13/2013 - Gruppi d'Azione Locale (art. 4, co. 6)"]
[]
["-","Ha per oggetto sociale prevalente la gestione di spazi fieristici e l'organizzazione di eventi fieristici (art. 4, co. 7)"]
[]
["-","Ha per oggetto sociale prevalente la realizzazione e la gestione di impianti di trasporto a fune per la mobilità turistico-sportiva in aree montane (art. 4, co. 7)"]
[]
["-","Ha per oggetto sociale prevalente la produzione di energia da fonti rinnovabili (art. 4, co. 7)"]
[]
["-","Ha caratteristiche di spin off o di start up universitario, o analoghe a quelle degli enti di ricerca, ovvero gestisce aziende agricole con funzioni didattiche (art. 4, co. 8)"]
[]
["-","Produce un servizio di interesse generale a rete (di cui all'art. 3-bis del d.l. 138/2011) fuori dall'ambito territoriale di riferimento, con affidamento dei servizi, in corso e nuovi, tramite procedure ad evidenza pubblica (art. 4, co. 9-bis)"]
[]
["-","Produce beni e servizi strettamente necessari per il perseguimento delle finalità istituzionali dell'ente (art. 4, co. 1)"]
[]
["-","Produce un servizio di interesse generale (art. 4, co. 2, lett. a)"]
[]
["-","Progetta e realizza un'opera pubblica sulla base di un accordo di programma fra amministrazioni pubbliche (art. 4, co. 2, lett. b)"]
[]
["-","Realizza e gestisce un'opera pubblica ovvero organizza e gestisce un servizio di interesse generale attraverso un contratto di partenariato pubblico/privato (art. 4, co. 2, lett. c)"]
[]
["-","Produce beni o servizi strumentali all'ente o agli enti pubblici partecipanti o alla svolgimento delle loro funzioni(art. 4, co. 2, lett. d)"]
[]
["-","Svolge servizi di committenza (art. 4, co. 2, lett. e)"]
[]
["-","Valorizza il patrimonio immobiliare dell'amministrazione partecipante (art. 4, co. 3)"]
[]
[null,"Indicare le motivazioni della riconducibilità o meno ai vincoli di scopo di cui al co. 1 o ad una delle attività di cui ai commi 2 e 3, anche con riferimento alle società che svolgono le attività di cui ai commi 6, 7, 8:"]
[null,"trattasi di società di gestione del servizio pubblico di distribuzione del gas naturale svolto mediante realizzazione e gestione di reti e impianti strumentali"]
[]
[null,"(a): Inserire uno dei progressivi già indicati nelle schede di ricognizione (02.01; 02.02)."]
[null,"(b): Inserire la ragione sociale come indicata nelle schede di ricognizione (02.01; 02.02)."]
[null,"(c): Indicare il tipo di partecipazione distinguendo i casi in cui la società sia partecipata direttamente, indirettamente (tramite altra società/organismo),"]
[null,"       ovvero in parte direttamente e in parte indirettamente."]
[null,"(d): Inserire l'attività come indicata nelle schede di ricognizione (02.01; 02.02)."]

{"sheet":"03.01.05 VCS Vendite Spa","index":10,"n_rows":58,"n_cols":7,"rows_kept":58,"cut":false,"hidden":false,"merged":[[32,1,32,4],[6,4,6,5],[10,4,10,5],[13,1,13,4],[15,1,15,4],[17,1,17,4],[19,1,19,4],[21,1,21,4],[24,1,24,4],[26,1,26,4],[28,1,28,4],[30,1,30,4],[46,1,46,4],[48,1,48,4],[50,1,50,4],[51,1,51,4],[34,1,34,4],[36,1,36,4],[38,1,38,4],[40,1,40,4],[42,1,42,4],[44,1,44,4]]}
[]
[null,"03. REQUISITI TESTO UNICO DELLE SOCIETÀ A PARTECIPAZIONE PUBBLICA"]
[null,"03.01. Finalità perseguite e attività ammesse (articoli 4 e 26)"]
[]
[null,null,null,"Progressivo società partecipata:",2,null,"(a)"]
[]
[null,null,null,"Denominazione società partecipata:","Valle Camonica Servizi Vendite S.p.a.",null,"(b)"]
[]
[null,null,null,"Tipo partecipazione:","Indiretta",null,"(c)"]
[]
[null,null,null,"Attività svolta:","Commercio di gas distribuito mediante condotte; commercio di energia elettrica ",null,"(d)"]
[]
[null,"indicare se la società:"]
["-","Rientra nell'Allegato \"A\" del d.lgs. n. 175/2016 (art. 26, co. 2)"]
[]
["-","Ha come oggetto esclusivo la gestione di fondi europei per conto dello Stato o delle Regioni, ovvero la realizzazione di progetti di ricerca finanziati dalle istituzioni dell'Unione Europea (art. 26, co. 2)"]
[]
["-","È stata esclusa, con deliberazione adottata ai sensi dell'art. 4 co. 9, secondo periodo, dall'applicazione totale o parziale delle disposizioni del medesimo articolo (solo per le società partecipate dalle Regioni/Prov. Aut.)"]
[]
["-","È destinataria dei provvedimenti di cui al d.lgs. n. 159/2011 (art. 26, co. 12-bis) "]
[]
["-","È autorizzata alla gestione delle case da gioco, ai sensi della legislazione vigente (art. 26, co. 12-sexies) "]
[]
[null,"Qualora non sia stata selezionata alcuna delle opzioni indicate ai punti precedenti, indicare se la società:"]
["-","È costituita in attuazione dell'art. 34 del regolamento CE n. 13/2013 - Gruppi d'Azione Locale (art. 4, co. 6)"]
[]
["-","Ha per oggetto sociale prevalente la gestione di spazi fieristici e l'organizzazione di eventi fieristici (art. 4, co. 7)"]
[]
["-","Ha per oggetto sociale prevalente la realizzazione e la gestione di impianti di trasporto a fune per la mobilità turistico-sportiva in aree montane (art. 4, co. 7)"]
[]
["-","Ha per oggetto sociale prevalente la produzione di energia da fonti rinnovabili (art. 4, co. 7)"]
[]
["-","Ha caratteristiche di spin off o di start up universitario, o analoghe a quelle degli enti di ricerca, ovvero gestisce aziende agricole con funzioni didattiche (art. 4, co. 8)"]
[]
["-","Produce un servizio di interesse generale a rete (di cui all'art. 3-bis del d.l. 138/2011) fuori dall'ambito territoriale di riferimento, con affidamento dei servizi, in corso e nuovi, tramite procedure ad evidenza pubblica (art. 4, co. 9-bis)"]
[]
["-","Produce beni e servizi strettamente necessari per il perseguimento delle finalità istituzionali dell'ente (art. 4, co. 1)"]
[]
["-","Produce un servizio di interesse generale (art. 4, co. 2, lett. a)"]
[]
["-","Progetta e realizza un'opera pubblica sulla base di un accordo di programma fra amministrazioni pubbliche (art. 4, co. 2, lett. b)"]
[]
["-","Realizza e gestisce un'opera pubblica ovvero organizza e gestisce un servizio di interesse generale attraverso un contratto di partenariato pubblico/privato (art. 4, co. 2, lett. c)"]
[]
["-","Produce beni o servizi strumentali all'ente o agli enti pubblici partecipanti o alla svolgimento delle loro funzioni(art. 4, co. 2, lett. d)"]
[]
["-","Svolge servizi di committenza (art. 4, co. 2, lett. e)"]
[]
["-","Valorizza il patrimonio immobiliare dell'amministrazione partecipante (art. 4, co. 3)"]
[]
[null,"Indicare le motivazioni della riconducibilità o meno ai vincoli di scopo di cui al co. 1 o ad una delle attività di cui ai commi 2 e 3, anche con riferimento alle società che svolgono le attività di cui ai commi 6, 7, 8:"]
[null,"trattasi di società che esercisce attività di vendita di gas naturale ed energia elettrica a clienti domestici del mercato tutelato"]
[]
[null,"(a): Inserire uno dei progressivi già indicati nelle schede di ricognizione (02.01; 02.02)."]
[null,"(b): Inserire la ragione sociale come indicata nelle schede di ricognizione (02.01; 02.02)."]
[null,"(c): Indicare il tipo di partecipazione distinguendo i casi in cui la società sia partecipata direttamente, indirettamente (tramite altra società/organismo),"]
[null,"       ovvero in parte direttamente e in parte indirettamente."]
[null,"(d): Inserire l'attività come indicata nelle schede di ricognizione (02.01; 02.02)."]

{"sheet":"03.02.01 Funivia Boario Borno","index":11,"n_rows":60,"n_cols":7,"rows_kept":60,"cut":false,"hidden":false,"merged":[[50,1,50,6],[20,1,20,2],[20,5,20,6],[33,1,33,6],[36,1,36,6],[40,1,40,6],[47,1,47,6],[18,3,18,4],[4,4,4,5],[6,4,6,5],[8,4,8,5],[10,4,10,5],[16,3,16,4]]}
[]
[null,"03. REQUISITI TESTO UNICO DELLE SOCIETÀ A PARTECIPAZIONE PUBBLICA"]
[null,"03.02. Condizioni art. 20, co. 2"]
[]
[null,null,null,"Progressivo società partecipata:","Dir_1",null,"(a)"]
[]
[null,null,null,"Denominazione società partecipata:","Funivia Boario Terme - Borno S.p.a.",null,"(b)"]
[]
[null,null,null,"Tipo partecipazione:","sia diretta che indiretta",null,"(c)"]
[]
[null,null,null,"Attività svolta:","Gestione di qualsiasi tipo di impianto di risalita e di trasporto a fune",null,"(d)"]
[]
[null,"dati riferiti all'esercizio 2024:"]
[{"$nulls":6},"Importi in euro"]
[null,"Numero medio dipendenti (e)",17,null,null,"Costo del personale (f)",582817]
[null,"Numero amministratori",5,null,null,"Compensi amministratori",29409.52]
[null,"di cui nominati dall'Ente",0,{"$f":"+IF(C17>C16,\"Attenzione! Il numero indicato non può essere superiore al numero di amministratori\",\"\")","v":""},null,"Compensi componenti organo di controllo",10000]
[null,"Numero componenti organo di controllo",5]
[null,"di cui nominati dall'Ente",0,{"$f":"+IF(C19>C18,\"Attenzione! Il numero indicato non può essere superiore al numero di componenti dell'organo di controllo\",\"\")","v":""}]
[null,null,"Importi in euro",null,null,null,"Importi in euro"]
[null,"RISULTATO D'ESERCIZIO (g)",null,null,null,"FATTURATO"]
[null,2024,56943,null,null,2024,2065672]
[null,2023,43335,null,null,2023,1836806]
[null,2022,82053,null,null,2022,1739283]
[null,2021,-51137,null,null,"FATTURATO MEDIO",{"$f":"AVERAGE(G22:G24)","v":1880587}]
[null,2020,-199592]
[]
[null,"Sussistenza delle condizioni di cui all'art. 20, co. 2:"]
[]
["-","La partecipazione societaria non rientra in alcuna delle categorie di cui all'art. 4 (art. 20, co. 2, lett. a)"]
[]
["-","Società priva di dipendenti o con numero di amministratori superiore a quello dei dipendenti (art. 20, co. 2, lett. b)"]
[]
["-","Svolgimento di attività analoghe o similari a quelle svolte da altre società partecipate o da enti pubblici strumentali (art. 20, co. 2, lett. c)"]
[]
[null,"Indicare quali società/enti strumentali:"]
[]
[]
["-","Fatturato medio non superiore a 1.000.000 euro nel triennio precedente (art. 20, co. 2, lett. d e art. 26, co. 12-quinquies)"]
[]
["-","Perdite in 4 dei 5 esercizi precedenti (per società che non gestiscono un servizio di interesse generale) (art. 20, co. 2, lett. e)"]
[]
["-","Necessità di contenimento dei costi di funzionamento (art. 20, co. 2, lett. f)"]
[]
["-","Necessità di aggregazione con altre società aventi ad oggetto le attività consentite all'art. 4 (art. 20, co. 2, lett. g)"]
[]
[null,"Indicare le motivazioni della sussistenza o meno delle condizioni di cui ai punti precedenti:"]
[null,"Ai sensi dell'art. 26 c.12-quater del TUSP per le società di gestione di impianti di risalita, solo ai fini della prima applicazione del criterio di cui all'articolo 20, comma 2, lettera e), si considerano i risultati dei cinque esercizi successivi all'entrata in vigore del T.U."]
[]
[null,"Azioni da intraprendere:"]
[null,"La società presenta elementi di criticità. Tuttavia il trend appare in ripresa (terminata la fase di emergenza sanitaria). Si ritiene  che sussistono i presupposti affinché l'Ente possa mantenere la propria partecipazione in questa società."]
[]
[null,"(a): Inserire uno dei progressivi già indicati nelle schede di ricognizione (02.01; 02.02)."]
[null,"(b): Inserire la ragione sociale come indicata nelle schede di ricognizione (02.01; 02.02)."]
[null,"(c): Indicare il tipo di partecipazione distinguendo i casi in cui la società sia partecipata direttamente, indirettamente (tramite altra società/organismo),"]
[null,"       ovvero in parte direttamente e in parte indirettamente."]
[null,"(d): Inserire l'attività svolta come indicata nelle schede di ricognizione (02.01; 02.02)."]
[null,"(e): Inserire il numero medio di dipendenti come da nota integrativa al bilancio."]
[null,"(f): Inserire la voce B9 del Conto economico."]
[null,"(g): Inserire il risultato d'esercizio al netto delle imposte."]

{"sheet":"03.02.02 V.C.S. Srl","index":12,"n_rows":60,"n_cols":7,"rows_kept":60,"cut":false,"hidden":false,"merged":[[50,1,50,6],[20,1,20,2],[20,5,20,6],[33,1,33,6],[36,1,36,6],[40,1,40,6],[47,1,47,6],[18,3,18,4],[4,4,4,5],[6,4,6,5],[8,4,8,5],[10,4,10,5],[16,3,16,4]]}
[]
[null,"03. REQUISITI TESTO UNICO DELLE SOCIETÀ A PARTECIPAZIONE PUBBLICA"]
[null,"03.02. Condizioni art. 20, co. 2"]
[]
[null,null,null,"Progressivo società partecipata:","Dir_2",null,"(a)"]
[]
[null,null,null,"Denominazione società partecipata:","Valle Camonica Servizi S.r.l.",null,"(b)"]
[]
[null,null,null,"Tipo partecipazione:","sia diretta che indiretta",null,"(c)"]
[]
[null,null,null,"Attività svolta:","Raccolta, trattamento e smaltimento rifiuti; trasporto merci su strada; produzione energia elettrica; installazione, manutenzione e riparazione impianti elettrici, elettronici e di illuminazione",null,"(d)"]
[]
[null,"dati riferiti all'esercizio 2024:"]
[{"$nulls":6},"Importi in euro"]
[null,"Numero medio dipendenti (e)",60,null,null,"Costo del personale (f)",3236989]
[null,"Numero amministratori",5,null,null,"Compensi amministratori",14950]
[null,"di cui nominati dall'Ente",0,{"$f":"+IF(C17>C16,\"Attenzione! Il numero indicato non può essere superiore al numero di amministratori\",\"\")","v":""},null,"Compensi componenti organo di controllo",18000]
[null,"Numero componenti organo di controllo",3]
[null,"di cui nominati dall'Ente",null,{"$f":"+IF(C19>C18,\"Attenzione! Il numero indicato non può essere superiore al numero di componenti dell'organo di controllo\",\"\")","v":""}]
[null,null,"Importi in euro",null,null,null,"Importi in euro"]
[null,"RISULTATO D'ESERCIZIO (g)",null,null,null,"FATTURATO"]
[null,2024,2185949,null,null,2024,17479510]
[null,2023,2426838,null,null,2023,16568887]
[null,2022,1385335,null,null,2022,15032156]
[null,2021,926104,null,null,"FATTURATO MEDIO",{"$f":"AVERAGE(G22:G24)","v":16360184.333333334}]
[null,2020,1045930]
[]
[null,"Sussistenza delle condizioni di cui all'art. 20, co. 2:"]
[]
["-","La partecipazione societaria non rientra in alcuna delle categorie di cui all'art. 4 (art. 20, co. 2, lett. a)"]
[]
["-","Società priva di dipendenti o con numero di amministratori superiore a quello dei dipendenti (art. 20, co. 2, lett. b)"]
[]
["-","Svolgimento di attività analoghe o similari a quelle svolte da altre società partecipate o da enti pubblici strumentali (art. 20, co. 2, lett. c)"]
[]
[null,"Indicare quali società/enti strumentali:"]
[]
[]
["-","Fatturato medio non superiore a 1.000.000 euro nel triennio precedente (art. 20, co. 2, lett. d e art. 26, co. 12-quinquies)"]
[]
["-","Perdite in 4 dei 5 esercizi precedenti (per società che non gestiscono un servizio di interesse generale) (art. 20, co. 2, lett. e)"]
[]
["-","Necessità di contenimento dei costi di funzionamento (art. 20, co. 2, lett. f)"]
[]
["-","Necessità di aggregazione con altre società aventi ad oggetto le attività consentite all'art. 4 (art. 20, co. 2, lett. g)"]
[]
[null,"Indicare le motivazioni della sussistenza o meno delle condizioni di cui ai punti precedenti:"]
[null,"Non sono presenti elementi sintomatici di cui all'art. 20 TUSP"]
[]
[null,"Azioni da intraprendere:"]
[null,"si ritiene di mantenere la partecipazione posseduta in Valle Camonica Servizi s.r.l., senza effettuare interventi di razionalizzazione, perché si tratta di una società sottoposta al controllo analogo \"in house\" degli Enti locali soci, la quale produce un servizio di interesse generale (art. 4, co. 2, lett. a) – consistente nell’igiene ambientale – il quale è strettamente necessario per il perseguimento delle finalità istituzionali dell'Ente pubblico socio."]
[]
[null,"(a): Inserire uno dei progressivi già indicati nelle schede di ricognizione (02.01; 02.02)."]
[null,"(b): Inserire la ragione sociale come indicata nelle schede di ricognizione (02.01; 02.02)."]
[null,"(c): Indicare il tipo di partecipazione distinguendo i casi in cui la società sia partecipata direttamente, indirettamente (tramite altra società/organismo),"]
[null,"       ovvero in parte direttamente e in parte indirettamente."]
[null,"(d): Inserire l'attività svolta come indicata nelle schede di ricognizione (02.01; 02.02)."]
[null,"(e): Inserire il numero medio di dipendenti come da nota integrativa al bilancio."]
[null,"(f): Inserire la voce B9 del Conto economico."]
[null,"(g): Inserire il risultato d'esercizio al netto delle imposte."]

{"sheet":"03.02.03 SIV Srl","index":13,"n_rows":60,"n_cols":7,"rows_kept":60,"cut":false,"hidden":false,"merged":[[4,4,4,5],[6,4,6,5],[8,4,8,5],[10,4,10,5],[16,3,16,4],[18,3,18,4],[50,1,50,6],[20,1,20,2],[20,5,20,6],[33,1,33,6],[36,1,36,6],[40,1,40,6],[47,1,47,6]]}
[]
[null,"03. REQUISITI TESTO UNICO DELLE SOCIETÀ A PARTECIPAZIONE PUBBLICA"]
[null,"03.02. Condizioni art. 20, co. 2"]
[]
[null,null,null,"Progressivo società partecipata:","Dir_3",null,"(a)"]
[]
[null,null,null,"Denominazione società partecipata:","Servizi Idrici Valle Camonica S.r.l. ",null,"(b)"]
[]
[null,null,null,"Tipo partecipazione:","Diretta",null,"(c)"]
[]
[null,null,null,"Attività svolta:","Servizio idrico integrato; gestione tecnica depuratori; gestione tecnica centraline",null,"(d)"]
[]
[null,"dati riferiti all'esercizio 2024:"]
[{"$nulls":6},"Importi in euro"]
[null,"Numero medio dipendenti (e)",15,null,null,"Costo del personale (f)",993336]
[null,"Numero amministratori",5,null,null,"Compensi amministratori",26811]
[null,"di cui nominati dall'Ente",0,{"$f":"+IF(C17>C16,\"Attenzione! Il numero indicato non può essere superiore al numero di amministratori\",\"\")","v":""},null,"Compensi componenti organo di controllo",4500]
[null,"Numero componenti organo di controllo",1]
[null,"di cui nominati dall'Ente",0,{"$f":"+IF(C19>C18,\"Attenzione! Il numero indicato non può essere superiore al numero di componenti dell'organo di controllo\",\"\")","v":""}]
[null,null,"Importi in euro",null,null,null,"Importi in euro"]
[null,"RISULTATO D'ESERCIZIO (g)",null,null,null,"FATTURATO"]
[null,2024,316363,null,null,2024,4161107]
[null,2023,26895,null,null,2023,3770311]
[null,2022,103495,null,null,2022,3310735]
[null,2021,265446,null,null,"FATTURATO MEDIO",{"$f":"AVERAGE(G22:G24)","v":3747384.3333333335}]
[null,2020,102132]
[]
[null,"Sussistenza delle condizioni di cui all'art. 20, co. 2:"]
[]
["-","La partecipazione societaria non rientra in alcuna delle categorie di cui all'art. 4 (art. 20, co. 2, lett. a)"]
[]
["-","Società priva di dipendenti o con numero di amministratori superiore a quello dei dipendenti (art. 20, co. 2, lett. b)"]
[]
["-","Svolgimento di attività analoghe o similari a quelle svolte da altre società partecipate o da enti pubblici strumentali (art. 20, co. 2, lett. c)"]
[]
[null,"Indicare quali società/enti strumentali:"]
[]
[]
["-","Fatturato medio non superiore a 1.000.000 euro nel triennio precedente (art. 20, co. 2, lett. d e art. 26, co. 12-quinquies)"]
[]
["-","Perdite in 4 dei 5 esercizi precedenti (per società che non gestiscono un servizio di interesse generale) (art. 20, co. 2, lett. e)"]
[]
["-","Necessità di contenimento dei costi di funzionamento (art. 20, co. 2, lett. f)"]
[]
["-","Necessità di aggregazione con altre società aventi ad oggetto le attività consentite all'art. 4 (art. 20, co. 2, lett. g)"]
[]
[null,"Indicare le motivazioni della sussistenza o meno delle condizioni di cui ai punti precedenti:"]
[null,"la società opera in regime di \"in house providing \" nel campo del servizio idrico integrato"]
[]
[null,"Azioni da intraprendere:"]
[null,"sussistono tutti i requisiti necessari affinché l'Ente possa mantenere la propria partecipazione in questa società."]
[]
[null,"(a): Inserire uno dei progressivi già indicati nelle schede di ricognizione (02.01; 02.02)."]
[null,"(b): Inserire la ragione sociale come indicata nelle schede di ricognizione (02.01; 02.02)."]
[null,"(c): Indicare il tipo di partecipazione distinguendo i casi in cui la società sia partecipata direttamente, indirettamente (tramite altra società/organismo),"]
[null,"       ovvero in parte direttamente e in parte indirettamente."]
[null,"(d): Inserire l'attività svolta come indicata nelle schede di ricognizione (02.01; 02.02)."]
[null,"(e): Inserire il numero medio di dipendenti come da nota integrativa al bilancio."]
[null,"(f): Inserire la voce B9 del Conto economico."]
[null,"(g): Inserire il risultato d'esercizio al netto delle imposte."]

{"sheet":"03.02.04 Blu Reti Gas srl","index":14,"n_rows":60,"n_cols":7,"rows_kept":60,"cut":false,"hidden":false,"merged":[[18,3,18,4],[4,4,4,5],[6,4,6,5],[8,4,8,5],[10,4,10,5],[16,3,16,4],[50,1,50,6],[20,1,20,2],[20,5,20,6],[33,1,33,6],[36,1,36,6],[40,1,40,6],[47,1,47,6]]}
[]
[null,"03. REQUISITI TESTO UNICO DELLE SOCIETÀ A PARTECIPAZIONE PUBBLICA"]
[null,"03.02. Condizioni art. 20, co. 2"]
[]
[null,null,null,"Progressivo società partecipata:","Ind_1",null,"(a)"]
[]
[null,null,null,"Denominazione società partecipata:","Blu Reti Gas S.r.l.",null,"(b)"]
[]
[null,null,null,"Tipo partecipazione:","Indiretta",null,"(c)"]
[]
[null,null,null,"Attività svolta:","Distribuzione combustibili gassosi; installazione e manutenzione impianti idraulici, di riscaldamento , di condizionamento dell'aria e per la distribuzione del gas; altre attività di consulenza tecnica",null,"(d)"]
[]
[null,"dati con riferimento all'esercizio 2024:"]
[{"$nulls":6},"Importi in euro"]
[null,"Numero medio dipendenti (e)",24,null,null,"Costo del personale (f)",1599288]
[null,"Numero amministratori",3,null,null,"Compensi amministratori",22666]
[null,"di cui nominati dall'Ente",0,{"$f":"+IF(C17>C16,\"Attenzione! Il numero indicato non può essere superiore al numero di amministratori\",\"\")","v":""},null,"Compensi componenti organo di controllo",8000]
[null,"Numero componenti organo di controllo",1]
[null,"di cui nominati dall'Ente",0,{"$f":"+IF(C19>C18,\"Attenzione! Il numero indicato non può essere superiore al numero di componenti dell'organo di controllo\",\"\")","v":""}]
[null,null,"Importi in euro",null,null,null,"Importi in euro"]
[null,"RISULTATO D'ESERCIZIO (g)",null,null,null,"FATTURATO"]
[null,2024,962087,null,null,2024,6767094]
[null,2023,630280,null,null,2023,5936999]
[null,2022,912371,null,null,2022,6392342]
[null,2021,1204722,null,null,"FATTURATO MEDIO",{"$f":"AVERAGE(G22:G24)","v":6365478.333333333}]
[null,2020,7705850]
[]
[null,"Sussistenza delle condizioni di cui all'art. 20, co. 2:"]
[]
["-","La partecipazione societaria non rientra in alcuna delle categorie di cui all'art. 4 (art. 20, co. 2, lett. a)"]
[]
["-","Società priva di dipendenti o con numero di amministratori superiore a quello dei dipendenti (art. 20, co. 2, lett. b)"]
[]
["-","Svolgimento di attività analoghe o similari a quelle svolte da altre società partecipate o da enti pubblici strumentali (art. 20, co. 2, lett. c)"]
[]
[null,"Indicare quali società/enti strumentali:"]
[]
[]
["-","Fatturato medio non superiore a 1.000.000 euro nel triennio precedente (art. 20, co. 2, lett. d e art. 26, co. 12-quinquies)"]
[]
["-","Perdite in 4 dei 5 esercizi precedenti (per società che non gestiscono un servizio di interesse generale) (art. 20, co. 2, lett. e)"]
[]
["-","Necessità di contenimento dei costi di funzionamento (art. 20, co. 2, lett. f)"]
[]
["-","Necessità di aggregazione con altre società aventi ad oggetto le attività consentite all'art. 4 (art. 20, co. 2, lett. g)"]
[]
[null,"Indicare le motivazioni della sussistenza o meno delle condizioni di cui ai punti precedenti:"]
[null,"Non sono presenti elementi sintomatici di cui all'art. 20 TUSP"]
[]
[null,"Azioni da intraprendere:"]
[null,"Si ritiene di mantenere, senza effettuare interventi, la partecipazione indiretta in Blu Reti Gas s.r.l. perché la società esercita nei comuni della Valle Camonica l’attività di distribuzione del gas naturale, che costituisce un servizio pubblico locale (art. 14, c. 1, d.lgs. 164/2000), svolto mediante la realizzazione e gestione di reti e impianti strumentali. Lo svolgimento di questa attività è ammesso per le società pubbliche  dall’art. 4, co. 2, lett. a) TUSP."]
[]
[null,"(a): Inserire uno dei progressivi già indicati nelle schede di ricognizione (02.01; 02.02)."]
[null,"(b): Inserire la ragione sociale come indicata nelle schede di ricognizione (02.01; 02.02)."]
[null,"(c): Indicare il tipo di partecipazione distinguendo i casi in cui la società sia partecipata direttamente, indirettamente (tramite altra società/organismo),"]
[null,"       ovvero in parte direttamente e in parte indirettamente."]
[null,"(d): Inserire l'attività svolta come indicata nelle schede di ricognizione (02.01; 02.02)."]
[null,"(e): Inserire il numero medio di dipendenti come da nota integrativa al bilancio."]
[null,"(f): Inserire la voce B9 del Conto economico."]
[null,"(g): Inserire il risultato d'esercizio al netto delle imposte."]

{"sheet":"03.02.05 VCS Vendite srl","index":15,"n_rows":60,"n_cols":7,"rows_kept":60,"cut":false,"hidden":false,"merged":[[18,3,18,4],[4,4,4,5],[6,4,6,5],[8,4,8,5],[10,4,10,5],[16,3,16,4],[50,1,50,6],[20,1,20,2],[20,5,20,6],[33,1,33,6],[36,1,36,6],[40,1,40,6],[47,1,47,6]]}
[]
[null,"03. REQUISITI TESTO UNICO DELLE SOCIETÀ A PARTECIPAZIONE PUBBLICA"]
[null,"03.02. Condizioni art. 20, co. 2"]
[]
[null,null,null,"Progressivo società partecipata:","Ind_2",null,"(a)"]
[]
[null,null,null,"Denominazione società partecipata:","Valle Camonica Servizi Vendite S.p.a.",null,"(b)"]
[]
[null,null,null,"Tipo partecipazione:","Indiretta",null,"(c)"]
[]
[null,null,null,"Attività svolta:","Commercio di gas distribuito mediante condotte; commercio di energia elettrica ",null,"(d)"]
[]
[null,"dati con riferimento all'esercizio 2024:"]
[{"$nulls":6},"Importi in euro"]
[null,"Numero medio dipendenti (e)",32,null,null,"Costo del personale (f)",1857413]
[null,"Numero amministratori",3,null,null,"Compensi amministratori",22666]
[null,"di cui nominati dall'Ente",0,{"$f":"+IF(C17>C16,\"Attenzione! Il numero indicato non può essere superiore al numero di amministratori\",\"\")","v":""},null,"Compensi componenti organo di controllo",21000]
[null,"Numero componenti organo di controllo",3]
[null,"di cui nominati dall'Ente",0,{"$f":"+IF(C19>C18,\"Attenzione! Il numero indicato non può essere superiore al numero di componenti dell'organo di controllo\",\"\")","v":""}]
[null,null,"Importi in euro",null,null,null,"Importi in euro"]
[null,"RISULTATO D'ESERCIZIO (g)",null,null,null,"FATTURATO"]
[null,2024,2955509,null,null,2024,62239747]
[null,2023,1748182,null,null,2023,64716268]
[null,2022,1665432,null,null,2022,92213721]
[null,2021,1865517,null,null,"FATTURATO MEDIO",{"$f":"AVERAGE(G22:G24)","v":73056578.666666672}]
[null,2020,2228432]
[]
[null,"Sussistenza delle condizioni di cui all'art. 20, co. 2:"]
[]
["-","La partecipazione societaria non rientra in alcuna delle categorie di cui all'art. 4 (art. 20, co. 2, lett. a)"]
[]
["-","Società priva di dipendenti o con numero di amministratori superiore a quello dei dipendenti (art. 20, co. 2, lett. b)"]
[]
["-","Svolgimento di attività analoghe o similari a quelle svolte da altre società partecipate o da enti pubblici strumentali (art. 20, co. 2, lett. c)"]
[]
[null,"Indicare quali società/enti strumentali:"]
[]
[]
["-","Fatturato medio non superiore a 1.000.000 euro nel triennio precedente (art. 20, co. 2, lett. d e art. 26, co. 12-quinquies)"]
[]
["-","Perdite in 4 dei 5 esercizi precedenti (per società che non gestiscono un servizio di interesse generale) (art. 20, co. 2, lett. e)"]
[]
["-","Necessità di contenimento dei costi di funzionamento (art. 20, co. 2, lett. f)"]
[]
["-","Necessità di aggregazione con altre società aventi ad oggetto le attività consentite all'art. 4 (art. 20, co. 2, lett. g)"]
[]
[null,"Indicare le motivazioni della sussistenza o meno delle condizioni di cui ai punti precedenti:"]
[null,"Non sono presenti elementi sintomatici di cui all'art. 20 TUSP"]
[]
[null,"Azioni da intraprendere:"]
[null,"Si ritiene di mantenere la partecipazione indiretta in Valle Camonica Servizi Vendite Spa, senza effettuare interventi, in quanto l’attività di vendita del gas naturale e dell’energia elettrica ai clienti domestici del mercato tutelato costituisce un servizio di interesse generale perché è esercitata alle condizioni e con le tariffe stabilite dall’Autorità per l’energia.  In secondo luogo si tratta di un’attività sottoposta alle regole emanate dall’Autorità per l’energia per cui essa rientra tra i servizi di interesse generale in base alla Relazione illustrativa al decreto correttivo n. 100 del 2017 del Testo unico società pubbliche partecipate. \nInoltre, la maggior parte dei clienti sono costituiti da cittadini residenti nei comuni soci, per cui la fornitura soddisfa i bisogni della collettività di riferimento. Infatti la società ha anche aperto sportelli per il pubblico nei principali comuni della Valle Camonica, per venire incontro alle esigenze della popolazione.\n"]
[]
[null,"(a): Inserire uno dei progressivi già indicati nelle schede di ricognizione (02.01; 02.02)."]
[null,"(b): Inserire la ragione sociale come indicata nelle schede di ricognizione (02.01; 02.02)."]
[null,"(c): Indicare il tipo di partecipazione distinguendo i casi in cui la società sia partecipata direttamente, indirettamente (tramite altra società/organismo),"]
[null,"       ovvero in parte direttamente e in parte indirettamente."]
[null,"(d): Inserire l'attività svolta come indicata nelle schede di ricognizione (02.01; 02.02)."]
[null,"(e): Inserire il numero medio di dipendenti come da nota integrativa al bilancio."]
[null,"(f): Inserire la voce B9 del Conto economico."]
[null,"(g): Inserire il risultato d'esercizio al netto delle imposte."]

{"sheet":"04_Mantenimento","index":16,"n_rows":24,"n_cols":7,"rows_kept":24,"cut":false,"hidden":false,"merged":[[14,1,14,4]]}
[null,"04. MANTENIMENTO SENZA INTERVENTI DI RAZIONALIZZAZIONE"]
[]
[]
[null,"Progressivo","Denominazione società","Tipo di partecipazione","Attività svolta","% Quota di partecipazione","Motivazioni della scelta"]
[null,"A","B","C","D","E","F"]
[null,1,"Funivia Boario Terme - Borno S.p.a.","sia diretta che indiretta","Gestione di qualsiasi tipo di impianto di risalita e di trasporto a fune",0.02,"si ritiene che la società sia strettamente necessaria per le finalità istituzionali dell'Ente "]
[null,2,"Valle Camonica Servizi S.r.l.","sia diretta che indiretta","Raccolta, trattamento e smaltimento rifiuti; trasporto merci su strada; produzione energia elettrica; installazione, manutenzione e riparazione impianti elettrici. ",0.49969999999999998,"si ritiene che la società sia strettamente necessaria per le finalità istituzionali dell'Ente "]
[null,3,"S.I.V. S.r.l.","Diretta","Servizio idrico integrato, gestione tecnica depuratori; gestione tecnica centraline",2.0489999999999999,"si ritiene che la società sia strettamente necessaria per le finalità istituzionali dell'Ente "]
[null,1,"Blu Reti Gas S.r.l.","Indiretta","Distribuzione combustibili gassosi; installazione e manutenzione impianti idraulici, di riscaldamento , di condizionamento dell'aria e per la distribuzione del gas; altre attività di consulenza tecnica",1.7206999999999999,"si ritiene che la società sia strettamente necessaria per le finalità istituzionali dell'Ente e sia in possesso dei requisiti richiesti per il mantenimento"]
[null,2,"Valle Camonica Servizi Vendite S.p.a.","Indiretta","Commercio di gas distribuito mediante condotte; commercio di energia elettrica ",1.7206999999999999,"si ritiene che la società sia strettamente necessaria per le finalità istituzionali dell'Ente e sia in possesso dei requisiti richiesti per il mantenimento"]
[]
[null,"Colonna A: Inserire uno dei progressivi indicati nelle schede di ricognizione (02.01; 02.02)."]
[null,"Colonna B: Inserire la ragione sociale come indicata nelle schede di ricognizione (02.01; 02.02)."]
[null,"Colonna C: Indicare il tipo di partecipazione distinguendo i casi in cui la società sia partecipata direttamente, indirettamente (tramite altra società/organismo),  "]
[null,"                 oppure in parte direttamente e in parte indirettamente."]
[null,"Colonna D: Inserire l'attività svolta come indicata nelle schede di ricognizione (02.01; 02.02)."]
[null,"Colonna E: Inserire la quota complessiva di partecipazione dell'Amministrazione, sommando le quote dirette (02.01 colonna E) e indirette (02.02 colonna G)."]
[null,"Colonna F: Indicare, ai sensi dell'art. 24 co. 1, la/le motivazioni della scelta di mantenimento della partecipazione senza alcun intervento di razionalizzazione."]
[null,"               Allo scopo, specificare la sussistenza dei requisiti indicati dalla scheda 03.01 (stretta necessarietà della società alle finalità dell'ente e svolgimento da parte della "]
[null,"               medesima di una delle attività consentite dall'art. 4). In caso di attività inerenti ai servizi pubblici locali, esplicitare le ragioni della convenienza economica"]
[null,"               dell'erogazione del servizio mediante la società anzichè in forme alternative (gestione diretta, azienda speciale, ecc.) e della sostenibilità della scelta in termini di "]
[null,"               costo-opportunità per l'ente. Con riferimento alle condizioni di cui alla scheda 03.02, dichiarare espressamente che non ricorrono le condizioni ivi indicate e darne "]
[null,"              motivazione. In relazione ai servizi pubblici a rete di rilevanza economica, dare dimostrazione della non necessarietà di operazioni di aggregazione con altre società"]
[null,"              operanti nello stesso settore e del fatto che la società svolge servizi non compresi tra quelli da affidare per il tramite dell'Ente di Governo d'Ambito."]

{"sheet":"05.01_Azioni_Contenimento_Costi","index":17,"n_rows":34,"n_cols":9,"rows_kept":34,"cut":false,"hidden":false,"merged":[[23,1,23,7],[26,1,26,7],[11,3,11,6],[7,3,7,7],[14,1,14,7],[17,1,17,7],[20,1,20,7]]}
[]
[null,"05. AZIONI DI RAZIONALIZZAZIONE"]
[null,"05.01. Contenimento costi"]
[]
[]
[null,null,"Progressivo società partecipata:",null,"(a)",null,"Quota di partecipazione detenuta:",null,"(b)"]
[]
[null,null,"Denominazione società partecipata:",{"$nulls":5},"   (c)"]
[]
[null,null,"Tipo partecipazione:",null,"(d)"]
[]
[null,null,"Attività svolta:",{"$nulls":4},"(e)"]
[]
[null,"Descrivere gli interventi di contenimento programmati: "]
[]
[]
[null,"Indicare le motivazioni:"]
[]
[]
[null,"Indicare le modalità di attuazione:"]
[]
[]
[null,"Indicare i tempi stimati:"]
[]
[]
[null,"Indicare una stima dei risparmi attesi:"]
[]
[]
[null,"(a): Inserire uno dei progressivi già indicati nelle schede di ricognizione (02.01; 02.02)."]
[null,"(b): Inserire la quota complessiva di partecipazione dell'Amministrazione, sommando le quote dirette (02.01 colonna E) e indirette (02.02 colonna G)."]
[null,"(c): Inserire la ragione sociale come indicata nelle schede di ricognizione (02.01; 02.02)."]
[null,"(d): Indicare il tipo di partecipazione distinguendo i casi in cui la società sia partecipata direttamente, indirettamente (tramite altra società/organismo),"]
[null,"       ovvero in parte direttamente e in parte indirettamente."]
[null,"(e): Inserire l'attività come indicata nelle schede di ricognizione (02.01; 02.02)."]

{"sheet":"05.02_Azioni_Cessione","index":18,"n_rows":34,"n_cols":9,"rows_kept":34,"cut":false,"hidden":false,"merged":[[26,1,26,7],[7,3,7,7],[11,3,11,6],[14,1,14,7],[17,1,17,7],[20,1,20,7],[23,1,23,7]]}
[]
[null,"05. AZIONI DI RAZIONALIZZAZIONE"]
[null,"05.02. Cessione"]
[]
[]
[null,null,"Progressivo società partecipata:",null,"(a)",null,"Quota di partecipazione detenuta:",null,"(b)"]
[]
[null,null,"Denominazione società partecipata:",{"$nulls":5},"   (c)"]
[]
[null,null,"Tipo partecipazione:",null,"(d)"]
[]
[null,null,"Attività svolta:",{"$nulls":4},"(e)"]
[]
[null,"Descrivere gli interventi di contenimento programmati: "]
[]
[]
[null,"Indicare le motivazioni:"]
[]
[]
[null,"Indicare le modalità di attuazione:"]
[]
[]
[null,"Indicare i tempi stimati:"]
[]
[]
[null,"Indicare una stima dei risparmi attesi:"]
[]
[]
[null,"(a): Inserire uno dei progressivi già indicati nelle schede di ricognizione (02.01; 02.02)."]
[null,"(b): Inserire la quota complessiva di partecipazione dell'Amministrazione, sommando le quote dirette (02.01 colonna E) e indirette (02.02 colonna G)."]
[null,"(c): Inserire la ragione sociale come indicata nelle schede di ricognizione (02.01; 02.02)."]
[null,"(d): Indicare il tipo di partecipazione distinguendo i casi in cui la società sia partecipata direttamente, indirettamente (tramite altra società/organismo),"]
[null,"       ovvero in parte direttamente e in parte indirettamente."]
[null,"(e): Inserire l'attività come indicata nelle schede di ricognizione (02.01; 02.02)."]

{"sheet":"05.03_Azioni_Liquidazione","index":19,"n_rows":34,"n_cols":9,"rows_kept":34,"cut":false,"hidden":false,"merged":[[26,1,26,7],[7,3,7,7],[11,3,11,6],[14,1,14,7],[17,1,17,7],[20,1,20,7],[23,1,23,7]]}
[]
[null,"05. AZIONI DI RAZIONALIZZAZIONE"]
[null,"05.03. Liquidazione"]
[]
[]
[null,null,"Progressivo società partecipata:",null,"(a)",null,"Quota di partecipazione detenuta:",null,"(b)"]
[]
[null,null,"Denominazione società partecipata:",{"$nulls":5},"   (c)"]
[]
[null,null,"Tipo partecipazione:",null,"(d)"]
[]
[null,null,"Attività svolta:",{"$nulls":4},"(e)"]
[]
[null,"Descrivere gli interventi di contenimento programmati: "]
[]
[]
[null,"Indicare le motivazioni:"]
[]
[]
[null,"Indicare le modalità di attuazione:"]
[]
[]
[null,"Indicare i tempi stimati:"]
[]
[]
[null,"Indicare una stima dei risparmi attesi:"]
[]
[]
[null,"(a): Inserire uno dei progressivi già indicati nelle schede di ricognizione (02.01; 02.02)."]
[null,"(b): Inserire la quota complessiva di partecipazione dell'Amministrazione, sommando le quote dirette (02.01 colonna E) e indirette (02.02 colonna G)."]
[null,"(c): Inserire la ragione sociale come indicata nelle schede di ricognizione (02.01; 02.02)."]
[null,"(d): Indicare il tipo di partecipazione distinguendo i casi in cui la società sia partecipata direttamente, indirettamente (tramite altra società/organismo),"]
[null,"       ovvero in parte direttamente e in parte indirettamente."]
[null,"(e): Inserire l'attività come indicata nelle schede di ricognizione (02.01; 02.02)."]

{"sheet":"05.04_Azioni_Fusione","index":20,"n_rows":34,"n_cols":9,"rows_kept":34,"cut":false,"hidden":false,"merged":[[26,1,26,7],[7,3,7,7],[11,3,11,6],[14,1,14,7],[17,1,17,7],[20,1,20,7],[23,1,23,7]]}
[]
[null,"05. AZIONI DI RAZIONALIZZAZIONE"]
[null,"05.04. Fusione/Incorporazione"]
[]
[]
[null,null,"Progressivo società partecipata:",null,"(a)",null,"Quota di partecipazione detenuta:",null,"(b)"]
[]
[null,null,"Denominazione società partecipata:",{"$nulls":5},"   (c)"]
[]
[null,null,"Tipo partecipazione:",null,"(d)"]
[]
[null,null,"Attività svolta:",{"$nulls":4},"(e)"]
[]
[null,"Descrivere gli interventi di contenimento programmati: "]
[]
[]
[null,"Indicare le motivazioni:"]
[]
[]
[null,"Indicare le modalità di attuazione:"]
[]
[]
[null,"Indicare i tempi stimati:"]
[]
[]
[null,"Indicare una stima dei risparmi attesi:"]
[]
[]
[null,"(a): Inserire uno dei progressivi già indicati nelle schede di ricognizione (02.01; 02.02)."]
[null,"(b): Inserire la quota complessiva di partecipazione dell'Amministrazione, sommando le quote dirette (02.01 colonna E) e indirette (02.02 colonna G)."]
[null,"(c): Inserire la ragione sociale come indicata nelle schede di ricognizione (02.01; 02.02)."]
[null,"(d): Indicare il tipo di partecipazione distinguendo i casi in cui la società sia partecipata direttamente, indirettamente (tramite altra società/organismo),"]
[null,"       ovvero in parte direttamente e in parte indirettamente."]
[null,"(e): Inserire l'attività come indicata nelle schede di ricognizione (02.01; 02.02)."]

{"sheet":"05.05_Riepilogo","index":21,"n_rows":34,"n_cols":9,"rows_kept":34,"cut":false,"hidden":false,"merged":[[26,1,26,7],[7,3,7,7],[11,3,11,6],[14,1,14,7],[17,1,17,7],[20,1,20,7],[23,1,23,7]]}
[]
[null,"05. AZIONI DI RAZIONALIZZAZIONE"]
[null,"05.05. Riepilogo"]
[]
[]
[null,null,"Progressivo società partecipata:",null,"(a)",null,"Quota di partecipazione detenuta:",null,"(b)"]
[]
[null,null,"Denominazione società partecipata:",{"$nulls":5},"   (c)"]
[]
[null,null,"Tipo partecipazione:",null,"(d)"]
[]
[null,null,"Attività svolta:",{"$nulls":4},"(e)"]
[]
[null,"Descrivere gli interventi di contenimento programmati: "]
[]
[]
[null,"Indicare le motivazioni:"]
[]
[]
[null,"Indicare le modalità di attuazione:"]
[]
[]
[null,"Indicare i tempi stimati:"]
[]
[]
[null,"Indicare una stima dei risparmi attesi:"]
[]
[]
[null,"(a): Inserire uno dei progressivi già indicati nelle schede di ricognizione (02.01; 02.02)."]
[null,"(b): Inserire la quota complessiva di partecipazione dell'Amministrazione, sommando le quote dirette (02.01 colonna E) e indirette (02.02 colonna G)."]
[null,"(c): Inserire la ragione sociale come indicata nelle schede di ricognizione (02.01; 02.02)."]
[null,"(d): Indicare il tipo di partecipazione distinguendo i casi in cui la società sia partecipata direttamente, indirettamente (tramite altra società/organismo),"]
[null,"       ovvero in parte direttamente e in parte indirettamente."]
[null,"(e): Inserire l'attività come indicata nelle schede di ricognizione (02.01; 02.02)."]

{"sheet":"06._Elenco_motivazioni","index":22,"n_rows":46,"n_cols":4,"rows_kept":46,"cut":false,"hidden":false,"merged":[]}
[null,"06. ELENCO MOTIVAZIONI SCHEDE 05.02, 05.03 E 05.04"]
[]
[null,"Scheda 05.02:",null,"Cessione/Alienazione quote"]
[null,null,null,"Nella \"cella\" relativa alla selezione delle motivazioni della scelta, dal menù a tendina"]
[null,null,null,"è possibile scegliere tra le seguenti opzioni:"]
[]
[null,null,"-","Internalizzazione delle attività svolte dalla società"]
[null,null,"-","Scelta di gestione del servizio in forma alternativa"]
[null,null,"-","Intervenuta modifica nella gestione/amministrazione della società, non condivisa dall’Ente"]
[null,null,"-","Società inattiva o non più operativa"]
[null,null,"-","Società non indispensabile per il perseguimento delle finalità dell'Ente"]
[null,null,"-","Società composta da soli amministratori o con numero dipendenti inferiore al numero amministratori"]
[null,null,"-","Società con fatturato medio inferiore a 500 mila  euro nel triennio precedente"]
[null,null,"-","Perdite reiterate"]
[null,null,"-","Carenza persistente di liquidità"]
[null,null,"-","Società con oggetto analogo o similare ad altri organismi partecipati dall'Ente"]
[null,null,"-","Altro (specificare)"]
[]
[null,"Scheda 05.03:",null,"Liquidazione"]
[null,null,null,"Nella \"cella\" relativa alla selezione delle motivazioni della scelta, dal menù a tendina"]
[null,null,null,"è possibile scegliere tra le seguenti opzioni:"]
[]
[null,null,"-","Internalizzazione delle attività svolte dalla società"]
[null,null,"-","Scelta di gestione del servizio in forma alternativa"]
[null,null,"-","Intervenuta modifica nella gestione/amministrazione della società, non condivisa dall’Ente"]
[null,null,"-","Società inattiva o non più operativa"]
[null,null,"-","Società non indispensabile per il perseguimento delle finalità dell'Ente"]
[null,null,"-","Società composta da soli amministratori o con numero dipendenti inferiore al numero amministratori"]
[null,null,"-","Società con fatturato medio inferiore a 500 mila euro euro nel triennio precedente"]
[null,null,"-","Perdite reiterate"]
[null,null,"-","Carenza persistente di liquidità"]
[null,null,"-","Società con oggetto analogo o similare ad altri organismi partecipati dall'Ente"]
[null,null,"-","Altro (specificare)"]
[]
[null,"Scheda 05.04:",null,"Fusione/Incorporazione"]
[null,null,null,"Nella \"cella\" relativa alla selezione delle motivazioni della scelta, dal menù a tendina"]
[null,null,null,"è possibile scegliere tra le seguenti opzioni:"]
[]
[null,null,"-","Svolgimento di attività complementari o analoghe a quelle coinvolte nel progetto di fusione/incorporazione"]
[null,null,"-","Aggregazione di società di servizi pubblici locali a rilevanza economica"]
[null,null,"-","Riduzione/contenimento dei costi di funzionamento (compresi quelli degli amministratori e organi"]
[null,null,null,"di revisione interna) o dei costi di produzione di beni e servizi"]
[null,null,"-","Compensazione di eventuali squilibri finanziari e/o economici preesistenti alla fusione/incorporazione "]
[null,null,"-","Realizzazione di economie di scala e di altre sinergie per l'integrazione di fasi consecutive della produzione"]
[null,null,null,"di beni e servizi e/o migliore utilizzo degli impianti, delle attrezzature e del know how in uso"]
[null,null,"-","Altro (specificare)"]